[Event "Titled Tuesday Blitz August 17 2021"]
[White "Brunner, Nicolas"]
[Black "Gelman, Alexander"]
[WhiteFideId "620246"]
[BlackFideId "4118316"]
[WhiteElo "2372"]
[BlackElo "2375"]
[Result "1-0"]
[Round "07"]
[TimeControl "180+1"]
[Date "2021.08.17"]
[WhiteClock "0:01:00"]
[BlackClock "0:00:03"]

1. d4 {[%clk 0:03:00]}  Nf6 {[%clk 0:02:59]} 2. c4 {[%clk 0:03:00]}  c5 {[%clk 0:03:00]} 3. d5 {[%clk 0:03:00]}  b5 {[%clk 0:03:00]} 4. cxb5 {[%clk 0:03:00]}  a6 {[%clk 0:03:01]} 5. bxa6 {[%clk 0:02:59]}  e6 {[%clk 0:03:01]} 6. Nc3 {[%clk 0:02:57]}  exd5 {[%clk 0:03:01]} 7. Nxd5 {[%clk 0:02:57]}  Nxa6 {[%clk 0:03:02]} 8. Nf3 {[%clk 0:02:56]}  Nxd5 {[%clk 0:03:01]} 9. Qxd5 {[%clk 0:02:55]}  Nc7 {[%clk 0:03:02]} 10. Qd1 {[%clk 0:02:53]}  d5 {[%clk 0:03:02]} 11. g3 {[%clk 0:02:52]}  g6 {[%clk 0:02:53]} 12. Bg2 {[%clk 0:02:51]}  Bg7 {[%clk 0:02:54]} 13. O-O {[%clk 0:02:51]}  O-O {[%clk 0:02:54]} 14. Qc2 {[%clk 0:02:50]}  Ne6 {[%clk 0:02:35]} 15. Rd1 {[%clk 0:02:46]}  Bb7 {[%clk 0:02:33]} 16. Bf4 {[%clk 0:02:36]}  d4 {[%clk 0:02:24]} 17. Be5 {[%clk 0:01:53]}  Bxf3 {[%clk 0:01:14]} 18. Bxg7 {[%clk 0:01:52]}  Bxg2 {[%clk 0:01:14]} 19. Bxf8 {[%clk 0:01:52]}  Bb7 {[%clk 0:01:13]} 20. Bxc5 {[%clk 0:01:46]}  Qd5 {[%clk 0:01:08]} 21. e4 {[%clk 0:01:42]}  Qe5 {[%clk 0:00:42]} 22. f4 {[%clk 0:01:15]}  Qxc5 {[%clk 0:00:17]} 23. Qxc5 {[%clk 0:01:14]}  Nxc5 {[%clk 0:00:18]} 24. Rxd4 {[%clk 0:01:14]}  Nxe4 {[%clk 0:00:18]} 25. a4 {[%clk 0:01:11]}  f5 {[%clk 0:00:14]} 26. a5 {[%clk 0:01:06]}  Ba6 {[%clk 0:00:12]} 27. Rc1 {[%clk 0:01:02]}  Rb8 {[%clk 0:00:12]} 28. b4 {[%clk 0:01:02]}  h5 {[%clk 0:00:08]} 29. Rc7 {[%clk 0:01:01]}  Nc3 {[%clk 0:00:03]} 30. Rxc3 {[%clk 0:01:00]} 1-0


[Site "https://www.chess.com"]

[Event "Titled Tuesday Blitz August 17 2021"]
[White "Cunjalo, Faris"]
[Black "Kavyev, Ruslan"]
[WhiteFideId "14410710"]
[BlackFideId "34110981"]
[WhiteElo "2234"]
[BlackElo "2172"]
[Result "1-0"]
[Round "07"]
[TimeControl "180+1"]
[Date "2021.08.17"]
[WhiteClock "0:01:23"]
[BlackClock "0:01:26"]

1. c4 {[%clk 0:03:00]}  Nf6 {[%clk 0:02:59]} 2. Nc3 {[%clk 0:03:01]}  g6 {[%clk 0:02:59]} 3. e4 {[%clk 0:03:01]}  d6 {[%clk 0:03:00]} 4. d4 {[%clk 0:03:02]}  Bg7 {[%clk 0:03:00]} 5. Be2 {[%clk 0:03:03]}  O-O {[%clk 0:03:01]} 6. Bg5 {[%clk 0:03:03]}  c5 {[%clk 0:03:01]} 7. d5 {[%clk 0:03:04]}  b5 {[%clk 0:03:01]} 8. cxb5 {[%clk 0:03:04]}  a6 {[%clk 0:03:01]} 9. a4 {[%clk 0:03:05]}  e6 {[%clk 0:03:01]} 10. dxe6 {[%clk 0:02:57]}  Bxe6 {[%clk 0:02:59]} 11. Nf3 {[%clk 0:02:57]}  axb5 {[%clk 0:02:58]} 12. Bxb5 {[%clk 0:02:52]}  Qb6 {[%clk 0:02:56]} 13. O-O {[%clk 0:02:51]}  h6 {[%clk 0:02:43]} 14. Bxf6 {[%clk 0:02:36]}  Bxf6 {[%clk 0:02:42]} 15. Nd5 {[%clk 0:02:37]}  Bxd5 {[%clk 0:02:43]} 16. Qxd5 {[%clk 0:02:38]}  Na6 {[%clk 0:02:41]} 17. Nd2 {[%clk 0:02:36]}  Nc7 {[%clk 0:02:37]} 18. Qb3 {[%clk 0:02:27]}  Nxb5 {[%clk 0:02:36]} 19. axb5 {[%clk 0:02:28]}  Rxa1 {[%clk 0:02:26]} 20. Rxa1 {[%clk 0:02:27]}  Rb8 {[%clk 0:02:27]} 21. Nc4 {[%clk 0:02:07]}  Qxb5 {[%clk 0:02:26]} 22. Qxb5 {[%clk 0:02:07]}  Rxb5 {[%clk 0:02:26]} 23. Ra8+ {[%clk 0:01:59]}  Kg7 {[%clk 0:02:26]} 24. Nxd6 {[%clk 0:01:59]}  Rb6 {[%clk 0:01:35]} 25. Ne8+ {[%clk 0:01:54]}  Kh7 {[%clk 0:01:35]} 26. Nxf6+ {[%clk 0:01:53]}  Rxf6 {[%clk 0:01:36]} 27. Rb8 {[%clk 0:01:50]}  Rd6 {[%clk 0:01:35]} 28. f3 {[%clk 0:01:51]}  Rd2 {[%clk 0:01:35]} 29. h4 {[%clk 0:01:50]}  h5 {[%clk 0:01:36]} 30. Kh2 {[%clk 0:01:51]}  Rc2 {[%clk 0:01:33]} 31. Rb7 {[%clk 0:01:51]}  c4 {[%clk 0:01:34]} 32. Rxf7+ {[%clk 0:01:50]}  Kh6 {[%clk 0:01:34]} 33. Rb7 {[%clk 0:01:51]}  Rc1 {[%clk 0:01:33]} 34. Kg3 {[%clk 0:01:51]}  Rb1 {[%clk 0:01:33]} 35. Rc7 {[%clk 0:01:50]}  Rxb2 {[%clk 0:01:33]} 36. Rxc4 {[%clk 0:01:51]}  Rb1 {[%clk 0:01:34]} 37. Rc5 {[%clk 0:01:51]}  Rb2 {[%clk 0:01:34]} 38. Rc7 {[%clk 0:01:52]}  Rb1 {[%clk 0:01:35]} 39. Rd7 {[%clk 0:01:52]}  Rb2 {[%clk 0:01:35]} 40. e5 {[%clk 0:01:52]}  Re2 {[%clk 0:01:36]} 41. Re7 {[%clk 0:01:51]}  Re1 {[%clk 0:01:35]} 42. Kf2 {[%clk 0:01:51]}  Rb1 {[%clk 0:01:35]} 43. Ke3 {[%clk 0:01:52]}  Rg1 {[%clk 0:01:35]} 44. e6 {[%clk 0:01:40]}  g5 {[%clk 0:01:32]} 45. Kf2 {[%clk 0:01:28]}  Rb1 {[%clk 0:01:29]} 46. Rf7 {[%clk 0:01:22]}  gxh4 {[%clk 0:01:27]} 47. e7 {[%clk 0:01:22]}  Rb8 {[%clk 0:01:25]} 48. Rf8 {[%clk 0:01:22]}  Rb2+ {[%clk 0:01:25]} 49. Kg1 {[%clk 0:01:22]}  Re2 {[%clk 0:01:25]} 50. e8=Q {[%clk 0:01:22]}  Rxe8 {[%clk 0:01:26]} 51. Rxe8 {[%clk 0:01:23]} 1-0


[Site "https://www.chess.com"]

[Event "Titled Tuesday Blitz August 17 2021"]
[White "Dang, Hoang Son"]
[Black "Gedajlovic, Max"]
[WhiteFideId "12402435"]
[BlackFideId "2616840"]
[WhiteElo "2248"]
[BlackElo "2137"]
[Result "1-0"]
[Round "07"]
[TimeControl "180+1"]
[Date "2021.08.17"]
[WhiteClock "0:00:31"]
[BlackClock "0:00:19"]

1. d4 {[%clk 0:03:00]}  Nf6 {[%clk 0:02:56]} 2. g3 {[%clk 0:03:00]}  d5 {[%clk 0:02:56]} 3. Bg2 {[%clk 0:03:00]}  e6 {[%clk 0:02:56]} 4. Nf3 {[%clk 0:03:01]}  Be7 {[%clk 0:02:54]} 5. O-O {[%clk 0:03:02]}  O-O {[%clk 0:02:55]} 6. c4 {[%clk 0:03:03]}  c6 {[%clk 0:02:55]} 7. Qc2 {[%clk 0:03:03]}  b6 {[%clk 0:02:54]} 8. cxd5 {[%clk 0:03:02]}  cxd5 {[%clk 0:02:54]} 9. Bf4 {[%clk 0:03:02]}  Ba6 {[%clk 0:02:53]} 10. Rc1 {[%clk 0:03:00]}  Nbd7 {[%clk 0:02:51]} 11. Bc7 {[%clk 0:02:59]}  Qe8 {[%clk 0:02:51]} 12. Nc3 {[%clk 0:02:46]}  Rc8 {[%clk 0:02:48]} 13. Qa4 {[%clk 0:02:46]}  Rxc7 {[%clk 0:02:46]} 14. Qxa6 {[%clk 0:02:46]}  Nb8 {[%clk 0:02:46]} 15. Qd3 {[%clk 0:02:44]}  Qc8 {[%clk 0:02:36]} 16. Nd2 {[%clk 0:02:29]}  a6 {[%clk 0:02:30]} 17. Nb3 {[%clk 0:02:19]}  Rd8 {[%clk 0:02:25]} 18. Na4 {[%clk 0:02:17]}  Nfd7 {[%clk 0:02:22]} 19. Rc3 {[%clk 0:01:45]}  Rc4 {[%clk 0:02:21]} 20. Rac1 {[%clk 0:01:39]}  b5 {[%clk 0:02:11]} 21. Nac5 {[%clk 0:01:40]}  Nxc5 {[%clk 0:02:11]} 22. dxc5 {[%clk 0:01:32]}  Bxc5 {[%clk 0:02:04]} 23. Na5 {[%clk 0:01:32]}  Nc6 {[%clk 0:01:37]} 24. Nxc4 {[%clk 0:01:17]}  dxc4 {[%clk 0:01:38]} 25. Qe4 {[%clk 0:01:07]}  Nd4 {[%clk 0:01:37]} 26. Bf1 {[%clk 0:01:05]}  Bb4 {[%clk 0:01:33]} 27. Rd3 {[%clk 0:00:55]}  f5 {[%clk 0:00:53]} 28. Qh4 {[%clk 0:00:46]}  Bc5 {[%clk 0:00:32]} 29. Rdd1 {[%clk 0:00:44]}  Qc7 {[%clk 0:00:30]} 30. Kh1 {[%clk 0:00:39]}  Rd7 {[%clk 0:00:28]} 31. e3 {[%clk 0:00:34]}  Nf3 {[%clk 0:00:24]} 32. Qh5 {[%clk 0:00:35]}  Rxd1 {[%clk 0:00:21]} 33. Rxd1 {[%clk 0:00:31]}  Ne5 {[%clk 0:00:20]} 34. Qe8+ {[%clk 0:00:31]}  Bf8 {[%clk 0:00:19]} 35. Qxe6+ {[%clk 0:00:31]}  Nf7 {[%clk 0:00:19]} 36. Rd7 {[%clk 0:00:31]} 1-0


[Site "https://www.chess.com"]

[Event "Titled Tuesday Blitz August 17 2021"]
[White "Divya Deshmukh"]
[Black "Novikova, Galina"]
[WhiteFideId "35006916"]
[BlackFideId "4157095"]
[WhiteElo "2239"]
[BlackElo "1907"]
[Result "1-0"]
[Round "07"]
[TimeControl "180+1"]
[Date "2021.08.18"]
[WhiteClock "0:00:09"]
[BlackClock "0:00:04"]

1. Nf3 {[%clk 0:02:56]}  d5 {[%clk 0:02:58]} 2. g3 {[%clk 0:02:57]}  Bf5 {[%clk 0:02:53]} 3. Bg2 {[%clk 0:02:57]}  Nf6 {[%clk 0:02:50]} 4. O-O {[%clk 0:02:57]}  e6 {[%clk 0:02:48]} 5. d3 {[%clk 0:02:58]}  Be7 {[%clk 0:02:47]} 6. Nbd2 {[%clk 0:02:57]}  O-O {[%clk 0:02:46]} 7. Re1 {[%clk 0:02:57]}  h6 {[%clk 0:02:45]} 8. b3 {[%clk 0:02:56]}  c5 {[%clk 0:02:43]} 9. Bb2 {[%clk 0:02:56]}  Nc6 {[%clk 0:02:43]} 10. e4 {[%clk 0:02:53]}  Bg6 {[%clk 0:02:33]} 11. Qe2 {[%clk 0:02:39]}  Re8 {[%clk 0:02:28]} 12. a3 {[%clk 0:02:31]}  Rc8 {[%clk 0:02:25]} 13. Rad1 {[%clk 0:02:13]}  Nd4 {[%clk 0:02:19]} 14. Nxd4 {[%clk 0:01:32]}  cxd4 {[%clk 0:02:20]} 15. e5 {[%clk 0:01:30]}  Nd7 {[%clk 0:02:16]} 16. Nf3 {[%clk 0:01:23]}  a5 {[%clk 0:01:34]} 17. Nxd4 {[%clk 0:01:18]}  Qb6 {[%clk 0:01:33]} 18. a4 {[%clk 0:01:15]}  Bc5 {[%clk 0:01:27]} 19. Nb5 {[%clk 0:01:14]}  Bb4 {[%clk 0:01:17]} 20. Rf1 {[%clk 0:01:08]}  Nb8 {[%clk 0:00:48]} 21. c4 {[%clk 0:01:02]}  Qc5 {[%clk 0:00:33]} 22. Bd4 {[%clk 0:00:42]}  Qe7 {[%clk 0:00:32]} 23. cxd5 {[%clk 0:00:42]}  exd5 {[%clk 0:00:31]} 24. Bxd5 {[%clk 0:00:43]}  Nc6 {[%clk 0:00:30]} 25. Bb2 {[%clk 0:00:19]}  Nxe5 {[%clk 0:00:30]} 26. Qxe5 {[%clk 0:00:19]}  Qxe5 {[%clk 0:00:31]} 27. Bxe5 {[%clk 0:00:19]}  Rxe5 {[%clk 0:00:32]} 28. Bxb7 {[%clk 0:00:20]}  Rc2 {[%clk 0:00:31]} 29. d4 {[%clk 0:00:18]}  Ree2 {[%clk 0:00:29]} 30. Bf3 {[%clk 0:00:17]}  Red2 {[%clk 0:00:28]} 31. Rxd2 {[%clk 0:00:16]}  Rxd2 {[%clk 0:00:29]} 32. Rd1 {[%clk 0:00:17]}  Rb2 {[%clk 0:00:28]} 33. d5 {[%clk 0:00:16]}  Rxb3 {[%clk 0:00:27]} 34. Kg2 {[%clk 0:00:11]}  Bc2 {[%clk 0:00:23]} 35. Rc1 {[%clk 0:00:11]}  Bf5 {[%clk 0:00:19]} 36. Nd4 {[%clk 0:00:11]}  Rd3 {[%clk 0:00:12]} 37. Nxf5 {[%clk 0:00:11]}  g6 {[%clk 0:00:13]} 38. Rc8+ {[%clk 0:00:11]}  Kh7 {[%clk 0:00:13]} 39. Ne3 {[%clk 0:00:11]}  Ra3 {[%clk 0:00:11]} 40. Bd1 {[%clk 0:00:09]}  Ra1 {[%clk 0:00:11]} 41. Bc2 {[%clk 0:00:08]}  Rc1 {[%clk 0:00:10]} 42. Rc6 {[%clk 0:00:08]}  Ra1 {[%clk 0:00:08]} 43. d6 {[%clk 0:00:09]}  Kg7 {[%clk 0:00:06]} 44. d7 {[%clk 0:00:09]}  Be7 {[%clk 0:00:06]} 45. Nd5 {[%clk 0:00:09]}  Bg5 {[%clk 0:00:05]} 46. h4 {[%clk 0:00:08]}  Bd8 {[%clk 0:00:05]} 47. Rc8 {[%clk 0:00:08]}  Rc1 {[%clk 0:00:02]} 48. Rxd8 {[%clk 0:00:08]}  Rxc2 {[%clk 0:00:03]} 49. Rg8+ {[%clk 0:00:08]}  Kxg8 {[%clk 0:00:02]} 50. d8=Q+ {[%clk 0:00:09]}  Kg7 {[%clk 0:00:03]} 51. Qf6+ {[%clk 0:00:08]}  Kh7 {[%clk 0:00:04]} 52. Qxf7+ {[%clk 0:00:08]}  Kh8 {[%clk 0:00:05]} 53. Qf8+ {[%clk 0:00:08]}  Kh7 {[%clk 0:00:04]} 54. Nf6# {[%clk 0:00:09]} 1-0


[Site "https://www.chess.com"]

[Event "Titled Tuesday Blitz August 17 2021"]
[White "Djordjevic, Vuk"]
[Black "Matthiesen, Martin"]
[WhiteFideId "902098"]
[BlackFideId "1404067"]
[WhiteElo "2463"]
[BlackElo "2337"]
[Result "1-0"]
[Round "07"]
[TimeControl "180+1"]
[Date "2021.08.17"]
[WhiteClock "0:00:05"]
[BlackClock "0:00:06"]

1. d4 {[%clk 0:03:00]}  Nf6 {[%clk 0:02:59]} 2. Bg5 {[%clk 0:03:00]}  d5 {[%clk 0:02:58]} 3. Bxf6 {[%clk 0:03:00]}  exf6 {[%clk 0:02:58]} 4. e3 {[%clk 0:03:00]}  Bd6 {[%clk 0:02:55]} 5. c4 {[%clk 0:03:00]}  dxc4 {[%clk 0:02:55]} 6. Bxc4 {[%clk 0:03:00]}  O-O {[%clk 0:02:55]} 7. Nc3 {[%clk 0:03:00]}  Nd7 {[%clk 0:02:52]} 8. Nf3 {[%clk 0:02:59]}  Nb6 {[%clk 0:02:49]} 9. Bd3 {[%clk 0:02:57]}  c5 {[%clk 0:02:46]} 10. Ne4 {[%clk 0:02:45]}  cxd4 {[%clk 0:02:37]} 11. Nxd6 {[%clk 0:02:41]}  Qxd6 {[%clk 0:02:37]} 12. Nxd4 {[%clk 0:02:42]}  Bd7 {[%clk 0:02:22]} 13. O-O {[%clk 0:02:40]}  Rfd8 {[%clk 0:02:20]} 14. Rc1 {[%clk 0:02:35]}  Rac8 {[%clk 0:02:19]} 15. Qh5 {[%clk 0:02:34]}  g6 {[%clk 0:02:18]} 16. Qf3 {[%clk 0:02:33]}  Rxc1 {[%clk 0:02:06]} 17. Rxc1 {[%clk 0:02:31]}  Rc8 {[%clk 0:02:06]} 18. Rd1 {[%clk 0:02:20]}  Rc7 {[%clk 0:01:58]} 19. Bxg6 {[%clk 0:02:11]}  hxg6 {[%clk 0:01:42]} 20. Nb5 {[%clk 0:02:11]}  Qe5 {[%clk 0:01:04]} 21. Nxc7 {[%clk 0:02:09]}  Qxc7 {[%clk 0:01:05]} 22. Qxf6 {[%clk 0:02:09]}  Qc2 {[%clk 0:00:47]} 23. Qd4 {[%clk 0:02:08]}  Be6 {[%clk 0:00:44]} 24. h3 {[%clk 0:01:27]}  Bxa2 {[%clk 0:00:41]} 25. Ra1 {[%clk 0:01:25]}  Qc4 {[%clk 0:00:21]} 26. Qd2 {[%clk 0:00:56]}  Qe6 {[%clk 0:00:15]} 27. Qa5 {[%clk 0:00:54]}  Bd5 {[%clk 0:00:14]} 28. Rd1 {[%clk 0:00:30]}  Bc6 {[%clk 0:00:13]} 29. Qxa7 {[%clk 0:00:26]}  Qe4 {[%clk 0:00:13]} 30. Qb8+ {[%clk 0:00:23]}  Kh7 {[%clk 0:00:13]} 31. Qg3 {[%clk 0:00:23]}  Nc4 {[%clk 0:00:14]} 32. b3 {[%clk 0:00:21]}  Ne5 {[%clk 0:00:13]} 33. Rd4 {[%clk 0:00:20]}  Qf5 {[%clk 0:00:10]} 34. b4 {[%clk 0:00:11]}  b5 {[%clk 0:00:09]} 35. Kh2 {[%clk 0:00:04]}  Qe6 {[%clk 0:00:08]} 36. Qh4+ {[%clk 0:00:04]}  Kg7 {[%clk 0:00:08]} 37. Qd8 {[%clk 0:00:05]}  Nc4 {[%clk 0:00:08]} 38. Rh4 {[%clk 0:00:05]}  g5 {[%clk 0:00:05]} 39. Qh8+ {[%clk 0:00:05]}  Kg6 {[%clk 0:00:06]} 40. Rh6+ {[%clk 0:00:05]} 1-0


[Site "https://www.chess.com"]

[Event "Titled Tuesday Blitz August 17 2021"]
[White "Estrada Nieto, Julian"]
[Black "Leitao, Rafael"]
[WhiteFideId "5101018"]
[BlackFideId "2101246"]
[WhiteElo "2270"]
[BlackElo "2609"]
[Result "0-1"]
[Round "07"]
[TimeControl "180+1"]
[Date "2021.08.17"]
[WhiteClock "0:00:08"]
[BlackClock "0:00:22"]

1. e4 {[%clk 0:03:00]}  c5 {[%clk 0:02:59]} 2. Nf3 {[%clk 0:03:00]}  d6 {[%clk 0:02:59]} 3. Bb5+ {[%clk 0:03:00]}  Nc6 {[%clk 0:02:57]} 4. O-O {[%clk 0:02:58]}  Bd7 {[%clk 0:02:56]} 5. Re1 {[%clk 0:02:58]}  Nf6 {[%clk 0:02:54]} 6. c3 {[%clk 0:02:57]}  a6 {[%clk 0:02:51]} 7. Bf1 {[%clk 0:02:57]}  Bg4 {[%clk 0:02:51]} 8. d4 {[%clk 0:02:55]}  cxd4 {[%clk 0:02:49]} 9. cxd4 {[%clk 0:02:55]}  e5 {[%clk 0:02:49]} 10. d5 {[%clk 0:02:55]}  Nd4 {[%clk 0:02:49]} 11. Be3 {[%clk 0:02:55]}  Nxf3+ {[%clk 0:02:49]} 12. gxf3 {[%clk 0:02:55]}  Bd7 {[%clk 0:02:49]} 13. Nd2 {[%clk 0:02:48]}  Be7 {[%clk 0:02:37]} 14. Qb3 {[%clk 0:02:47]}  b5 {[%clk 0:02:35]} 15. a4 {[%clk 0:02:34]}  bxa4 {[%clk 0:02:23]} 16. Rxa4 {[%clk 0:02:33]}  Bxa4 {[%clk 0:02:18]} 17. Qxa4+ {[%clk 0:02:33]}  Qd7 {[%clk 0:02:10]} 18. Qa5 {[%clk 0:02:13]}  O-O {[%clk 0:02:00]} 19. Nc4 {[%clk 0:02:13]}  Bd8 {[%clk 0:01:48]} 20. Qa3 {[%clk 0:02:09]}  Bc7 {[%clk 0:01:47]} 21. Bb6 {[%clk 0:02:00]}  Rfd8 {[%clk 0:01:41]} 22. Rc1 {[%clk 0:01:53]}  Ne8 {[%clk 0:01:27]} 23. b4 {[%clk 0:01:44]}  Rdc8 {[%clk 0:01:23]} 24. Bxc7 {[%clk 0:01:29]}  Qxc7 {[%clk 0:01:18]} 25. Ra1 {[%clk 0:01:02]}  Qd8 {[%clk 0:01:15]} 26. Na5 {[%clk 0:00:56]}  Qg5+ {[%clk 0:01:14]} 27. Kh1 {[%clk 0:00:54]}  Rc2 {[%clk 0:01:11]} 28. Qe3 {[%clk 0:00:45]}  Qh4 {[%clk 0:01:01]} 29. Kg1 {[%clk 0:00:43]}  Nf6 {[%clk 0:00:58]} 30. Nc6 {[%clk 0:00:37]}  Rf8 {[%clk 0:00:27]} 31. Ne7+ {[%clk 0:00:27]}  Kh8 {[%clk 0:00:27]} 32. Nf5 {[%clk 0:00:27]}  Qh5 {[%clk 0:00:27]} 33. Bxa6 {[%clk 0:00:19]}  Qg6+ {[%clk 0:00:26]} 34. Kh1 {[%clk 0:00:14]}  Nxd5 {[%clk 0:00:27]} 35. Rg1 {[%clk 0:00:12]}  Nxe3 {[%clk 0:00:24]} 36. Rxg6 {[%clk 0:00:10]}  Nxf5 {[%clk 0:00:22]} 37. exf5 {[%clk 0:00:08]}  hxg6 {[%clk 0:00:22]} 0-1


[Site "https://www.chess.com"]

[Event "Titled Tuesday Blitz August 17 2021"]
[White "Fernandez, Michael"]
[Black "Ismayil, Malak"]
[WhiteFideId "5803560"]
[BlackFideId "13412604"]
[WhiteElo "2110"]
[BlackElo "1879"]
[Result "1/2-1/2"]
[Round "07"]
[TimeControl "180+1"]
[Date "2021.08.18"]
[WhiteClock "0:00:12"]
[BlackClock "0:00:06"]

1. b4 {[%clk 0:03:00]}  e5 {[%clk 0:02:59]} 2. Bb2 {[%clk 0:03:00]}  d6 {[%clk 0:02:50]} 3. e3 {[%clk 0:02:48]}  Nf6 {[%clk 0:02:48]} 4. d4 {[%clk 0:02:27]}  e4 {[%clk 0:02:43]} 5. c4 {[%clk 0:02:07]}  Bg4 {[%clk 0:02:40]} 6. Be2 {[%clk 0:01:57]}  Bxe2 {[%clk 0:02:38]} 7. Nxe2 {[%clk 0:01:56]}  d5 {[%clk 0:02:38]} 8. b5 {[%clk 0:01:46]}  dxc4 {[%clk 0:02:29]} 9. Nd2 {[%clk 0:01:44]}  Bb4 {[%clk 0:02:27]} 10. Nc3 {[%clk 0:01:35]}  Nd5 {[%clk 0:02:09]} 11. Qc2 {[%clk 0:01:14]}  Nxc3 {[%clk 0:01:58]} 12. Bxc3 {[%clk 0:01:15]}  Bxc3 {[%clk 0:01:58]} 13. Qxc3 {[%clk 0:01:14]}  Qg5 {[%clk 0:01:55]} 14. Nxe4 {[%clk 0:01:00]}  Qxg2 {[%clk 0:01:47]} 15. Ng3 {[%clk 0:00:59]}  Qd5 {[%clk 0:01:45]} 16. a4 {[%clk 0:00:55]}  c6 {[%clk 0:01:33]} 17. e4 {[%clk 0:00:53]}  Qe6 {[%clk 0:01:27]} 18. O-O {[%clk 0:00:49]}  O-O {[%clk 0:01:24]} 19. Rac1 {[%clk 0:00:38]}  cxb5 {[%clk 0:01:13]} 20. axb5 {[%clk 0:00:38]}  Nd7 {[%clk 0:01:12]} 21. Qxc4 {[%clk 0:00:37]}  Qh3 {[%clk 0:01:05]} 22. Qd5 {[%clk 0:00:34]}  Nf6 {[%clk 0:01:03]} 23. Qf5 {[%clk 0:00:19]}  Qh4 {[%clk 0:00:48]} 24. e5 {[%clk 0:00:16]}  Ng4 {[%clk 0:00:40]} 25. Qh5 {[%clk 0:00:15]}  Qxh5 {[%clk 0:00:37]} 26. Nxh5 {[%clk 0:00:16]}  g6 {[%clk 0:00:32]} 27. Nf4 {[%clk 0:00:15]}  Rfd8 {[%clk 0:00:25]} 28. Rfd1 {[%clk 0:00:14]}  Nh6 {[%clk 0:00:19]} 29. d5 {[%clk 0:00:14]}  Re8 {[%clk 0:00:18]} 30. e6 {[%clk 0:00:12]}  g5 {[%clk 0:00:18]} 31. exf7+ {[%clk 0:00:12]}  Nxf7 {[%clk 0:00:17]} 32. Ne6 {[%clk 0:00:13]}  Nd6 {[%clk 0:00:09]} 33. Rc7 {[%clk 0:00:12]}  Rac8 {[%clk 0:00:09]} 34. Rdc1 {[%clk 0:00:12]}  Rxc7 {[%clk 0:00:08]} 35. Rxc7 {[%clk 0:00:12]}  Nxb5 {[%clk 0:00:09]} 36. Rxb7 {[%clk 0:00:13]}  Nc3 {[%clk 0:00:09]} 37. Rg7+ {[%clk 0:00:12]}  Kh8 {[%clk 0:00:09]} 38. Rxg5 {[%clk 0:00:13]}  Nxd5 {[%clk 0:00:08]} 39. Rxd5 {[%clk 0:00:13]}  Rxe6 {[%clk 0:00:09]} 40. Rd8+ {[%clk 0:00:14]}  Kg7 {[%clk 0:00:08]} 41. Rd7+ {[%clk 0:00:14]}  Kg6 {[%clk 0:00:09]} 42. Rxa7 {[%clk 0:00:15]}  Re1+ {[%clk 0:00:09]} 43. Kg2 {[%clk 0:00:16]}  Rb1 {[%clk 0:00:10]} 44. Ra3 {[%clk 0:00:15]}  Rb4 {[%clk 0:00:09]} 45. Rg3+ {[%clk 0:00:16]}  Kf6 {[%clk 0:00:09]} 46. h3 {[%clk 0:00:17]}  Rb2 {[%clk 0:00:08]} 47. Rg4 {[%clk 0:00:17]}  h5 {[%clk 0:00:08]} 48. Rc4 {[%clk 0:00:17]}  Kg5 {[%clk 0:00:08]} 49. Kg3 {[%clk 0:00:17]}  h4+ {[%clk 0:00:06]} 50. Kg2 {[%clk 0:00:17]}  Rb3 {[%clk 0:00:07]} 51. Rg4+ {[%clk 0:00:17]}  Kh5 {[%clk 0:00:07]} 52. f4 {[%clk 0:00:17]}  Rb2+ {[%clk 0:00:06]} 53. Kg1 {[%clk 0:00:16]}  Rb3 {[%clk 0:00:06]} 54. Kh2 {[%clk 0:00:15]}  Rb2+ {[%clk 0:00:06]} 55. Rg2 {[%clk 0:00:15]}  Rb3 {[%clk 0:00:07]} 56. Rf2 {[%clk 0:00:15]}  Kg6 {[%clk 0:00:07]} 57. f5+ {[%clk 0:00:14]}  Kf6 {[%clk 0:00:07]} 58. Rf4 {[%clk 0:00:14]}  Rb2+ {[%clk 0:00:06]} 59. Kg1 {[%clk 0:00:13]}  Kg5 {[%clk 0:00:06]} 60. Rf1 {[%clk 0:00:10]}  Rb6 {[%clk 0:00:04]} 61. Kg2 {[%clk 0:00:10]}  Rf6 {[%clk 0:00:04]} 62. Rf2 {[%clk 0:00:10]}  Rxf5 {[%clk 0:00:04]} 63. Rxf5+ {[%clk 0:00:11]}  Kxf5 {[%clk 0:00:05]} 64. Kf3 {[%clk 0:00:12]}  Kg5 {[%clk 0:00:06]} 1/2-1/2


[Site "https://www.chess.com"]

[Event "Titled Tuesday Blitz August 17 2021"]
[White "Firat, Burak"]
[Black "Indjic, Aleksandar"]
[WhiteFideId "6305881"]
[BlackFideId "911925"]
[WhiteElo "2531"]
[BlackElo "2643"]
[Result "0-1"]
[Round "07"]
[TimeControl "180+1"]
[Date "2021.08.17"]
[WhiteClock "0:00:03"]
[BlackClock "0:00:03"]

1. d4 {[%clk 0:03:00]}  Nf6 {[%clk 0:02:59]} 2. Bg5 {[%clk 0:03:00]}  g6 {[%clk 0:02:57]} 3. Bxf6 {[%clk 0:03:00]}  exf6 {[%clk 0:02:58]} 4. h4 {[%clk 0:03:00]}  h5 {[%clk 0:02:51]} 5. e3 {[%clk 0:03:00]}  f5 {[%clk 0:02:48]} 6. Ne2 {[%clk 0:02:51]}  d6 {[%clk 0:02:46]} 7. Nf4 {[%clk 0:02:49]}  Nd7 {[%clk 0:02:45]} 8. c4 {[%clk 0:02:29]}  Nf6 {[%clk 0:02:44]} 9. Nc3 {[%clk 0:02:29]}  c6 {[%clk 0:02:44]} 10. Bd3 {[%clk 0:02:22]}  Bh6 {[%clk 0:02:43]} 11. g3 {[%clk 0:02:21]}  O-O {[%clk 0:02:43]} 12. Qc2 {[%clk 0:02:18]}  Bd7 {[%clk 0:02:38]} 13. O-O-O {[%clk 0:02:11]}  Rc8 {[%clk 0:02:22]} 14. Kb1 {[%clk 0:01:58]}  b5 {[%clk 0:02:20]} 15. c5 {[%clk 0:01:57]}  dxc5 {[%clk 0:02:16]} 16. dxc5 {[%clk 0:01:58]}  Qe7 {[%clk 0:02:10]} 17. Nce2 {[%clk 0:01:57]}  Bg7 {[%clk 0:02:04]} 18. Nd4 {[%clk 0:01:53]}  a5 {[%clk 0:01:58]} 19. Rhe1 {[%clk 0:01:52]}  Rfe8 {[%clk 0:01:56]} 20. Qc3 {[%clk 0:01:28]}  a4 {[%clk 0:01:53]} 21. f3 {[%clk 0:01:25]}  Rb8 {[%clk 0:01:37]} 22. Qb4 {[%clk 0:01:22]}  Qe5 {[%clk 0:01:15]} 23. a3 {[%clk 0:01:12]}  Bf8 {[%clk 0:01:10]} 24. Rc1 {[%clk 0:01:11]}  Rbd8 {[%clk 0:01:01]} 25. Ka1 {[%clk 0:01:10]}  Qc7 {[%clk 0:00:50]} 26. Bb1 {[%clk 0:01:08]}  Bc8 {[%clk 0:00:48]} 27. Ba2 {[%clk 0:01:07]}  Kh7 {[%clk 0:00:41]} 28. Nh3 {[%clk 0:00:57]}  Nd5 {[%clk 0:00:40]} 29. Bxd5 {[%clk 0:00:53]}  Rxd5 {[%clk 0:00:39]} 30. Ng5+ {[%clk 0:00:53]}  Kg7 {[%clk 0:00:32]} 31. e4 {[%clk 0:00:45]}  fxe4 {[%clk 0:00:31]} 32. fxe4 {[%clk 0:00:46]}  Rd7 {[%clk 0:00:20]} 33. Qc3 {[%clk 0:00:40]}  Kg8 {[%clk 0:00:19]} 34. e5 {[%clk 0:00:31]}  Bg7 {[%clk 0:00:18]} 35. Ne4 {[%clk 0:00:32]}  Rxe5 {[%clk 0:00:16]} 36. Nd6 {[%clk 0:00:29]}  Rde7 {[%clk 0:00:16]} 37. Rf1 {[%clk 0:00:23]}  Bg4 {[%clk 0:00:14]} 38. Qb4 {[%clk 0:00:17]}  Qd7 {[%clk 0:00:14]} 39. N4xb5 {[%clk 0:00:15]}  cxb5 {[%clk 0:00:13]} 40. c6 {[%clk 0:00:15]}  Qc7 {[%clk 0:00:11]} 41. Nxb5 {[%clk 0:00:16]}  Rxb5 {[%clk 0:00:11]} 42. Qxb5 {[%clk 0:00:16]}  Re2 {[%clk 0:00:11]} 43. Rb1 {[%clk 0:00:14]}  Bf5 {[%clk 0:00:10]} 44. Qb7 {[%clk 0:00:14]}  Qd6 {[%clk 0:00:10]} 45. Rf3 {[%clk 0:00:10]}  Bxb2+ {[%clk 0:00:04]} 46. Rxb2 {[%clk 0:00:04]}  Qd1+ {[%clk 0:00:04]} 47. Ka2 {[%clk 0:00:03]}  Be6+ {[%clk 0:00:03]} 0-1


[Site "https://www.chess.com"]